bitfinex/quotes_BTCUSD_20230117
["timestamp","ask_amount","ask_price","bid_price","bid_amount"]
[1673969727643,3.05745707,21239.0,21238.0,0.01538989]
[1673969728096,3.05745707,21239.0,21237.0,0.01628442]
[1673969728097,0.59413001,21238.0,21237.0,0.0142601]
[1673969728350,4.05205906,21238.0,21237.0,0.0142601]
[1673969728564,4.17489196,21238.0,21237.0,0.0142601]
[1673969728824,3.74849381,21238.0,21237.0,0.0142601]
[1673969729040,4.09980585,21238.0,21237.0,0.0142601]
[1673969729288,2.8743009,21238.0,21237.0,0.0142601]
[1673969729525,2.62379659,21238.0,21237.0,0.0142601]
[1673969729737,3.27973453,21238.0,21237.0,0.0142601]
[1673969729960,3.35001372,21238.0,21237.0,0.0142601]
[1673969730422,2.89019187,21238.0,21235.0,0.01268665]
[1673969730658,0.321953,21237.0,21235.0,0.01268665]
[1673969730884,1.734647,21236.0,21235.0,0.01268665]
[1673969731105,2.034647,21236.0,21235.0,0.01262665]
[1673969731537,2.505545,21236.0,21235.0,0.01262665]
[1673969731759,2.629445,21236.0,21235.0,0.01262665]
[1673969731972,3.12453873,21236.0,21235.0,0.01262665]
[1673969732408,3.50020492,21236.0,21235.0,0.01262665]
[1673969732626,3.12453873,21236.0,21235.0,0.01262665]
[1673969732876,2.71820205,21236.0,21235.0,0.01262665]
[1673969734274,3.01820205,21236.0,21235.0,0.01262665]
[1673969735185,2.71820205,21236.0,21235.0,0.01262665]
[1673969736278,2.24730405,21236.0,21235.0,0.01262665]
[1673969737153,2.24730405,21236.0,21235.0,0.16921665]
[1673969737154,0.98355505,21236.0,21235.0,0.16921665]
[1673969738425,0.51265705,21236.0,21235.0,0.09501665]
[1673969738930,0.01756332,21236.0,21235.0,1.44903765]
[1673969739698,0.01756332,21236.0,21235.0,1.59903765]
[1673969739948,0.01756332,21236.0,21235.0,1.90753765]
[1673969740464,0.01756332,21236.0,21235.0,1.60753765]
[1673969740699,0.01756332,21236.0,21235.0,1.45753765]
[1673969741756,0.01756332,21236.0,21235.0,2.03113765]
[1673969742734,0.01756332,21236.0,21235.0,2.63113765]
[1673969745251,0.01756332,21236.0,21235.0,3.29906529]
[1673969745503,0.01756332,21236.0,21235.0,3.73033934]
[1673969745769,0.0115623,21242.0,21236.0,0.01542853]
[1673969746017,0.0115623,21242.0,21241.0,0.1236]
[1673969746302,0.0115623,21242.0,21241.0,0.61071495]
[1673969746544,0.0115623,21242.0,21241.0,1.83235]
[1673969748868,0.0115623,21242.0,21241.0,2.02307595]
[1673969749345,0.0115623,21242.0,21241.0,2.726737]
[1673969749604,0.0115623,21242.0,21241.0,1.70875]
[1673969749605,0.14760883,21242.0,21241.0,1.70875]
[1673969749857,0.0115623,21242.0,21241.0,1.237963]
[1673969752430,0.0115623,21242.0,21241.0,1.362163]
[1673969754219,0.0115623,21242.0,21241.0,1.785363]
[1673969754715,0.0115623,21242.0,21241.0,1.935363]
[1673969755233,0.0115623,21242.0,21241.0,1.362163]
[1673969757255,0.0115623,21242.0,21241.0,1.812163]
[1673969757504,0.0115623,21242.0,21241.0,1.936263]
[1673969757766,0.0115623,21242.0,21241.0,2.41346469]
[1673969758039,0.005551,21245.0,21241.0,2.41346469]
[1673969758293,0.005551,21245.0,21244.0,0.1233]
[1673969758552,0.005551,21245.0,21244.0,2.602521]
[1673969759341,0.005551,21245.0,21244.0,0.287837]
[1673969759602,0.005551,21245.0,21242.0,0.06950397]
[1673969759603,0.005551,21245.0,21242.0,0.470749]
[1673969759840,0.61229553,21245.0,21241.0,0.941547]
[1673969760109,1.53089423,21245.0,21240.0,0.47079]
[1673969760358,1.61873399,21244.0,21239.0,0.470817]
[1673969760636,1.61873399,21244.0,21237.0,0.470856]
[1673969760637,1.99740823,21243.0,21237.0,0.470856]
[1673969760877,0.58394723,21242.0,21237.0,0.470856]
[1673969761112,0.13604653,21241.0,21237.0,0.53314961]
[1673969762644,1.3894627,21242.0,21237.0,0.470856]
[1673969762915,1.55467989,21242.0,21237.0,0.66158195]
[1673969763196,2.00258059,21242.0,21237.0,0.66158195]
[1673969763475,2.00258059,21242.0,21238.0,0.0085]
[1673969763725,2.00258059,21242.0,21236.0,0.01542853]
[1673969763726,0.44365157,21240.0,21236.0,0.01542853]
[1673969764005,1.2406887,21239.0,21236.0,0.01542853]
[1673969764271,1.52561323,21239.0,21236.0,0.01542853]
[1673969764836,0.321953,21238.0,21236.0,0.01542853]
[1673969765105,0.321953,21237.0,21236.0,0.01542853]
[1673969765368,0.470876,21237.0,21236.0,0.01542853]
[1673969765640,0.792829,21237.0,21236.0,0.01542853]
[1673969765927,1.263705,21237.0,21236.0,0.01542853]
[1673969766189,1.563705,21237.0,21236.0,0.01542853]
[1673969766465,2.0116057,21237.0,21236.0,0.01542853]
[1673969766723,2.1616057,21237.0,21236.0,0.01542853]
[1673969767756,1.7116057,21237.0,21236.0,0.01542853]
[1673969769028,1.7116057,21237.0,21236.0,0.01526853]
[1673969769276,1.02863814,21238.0,21236.0,0.02376853]
[1673969770058,0.50983814,21238.0,21236.0,0.02376853]
[1673969770556,0.888427,21240.0,21236.0,0.02376853]
[1673969770818,0.470827,21240.0,21236.0,0.21449448]
[1673969771325,0.44911865,21239.0,21236.0,0.02376853]
[1673969771569,0.941708,21238.0,21236.0,0.01526853]
[1673969771831,0.321953,21237.0,21236.0,0.01526853]
[1673969772076,0.941752,21237.0,21236.0,0.01526853]
[1673969773108,1.84148345,21237.0,21236.0,0.01526853]
[1673969773364,2.00543692,21237.0,21236.0,0.01526853]
[1673969773631,2.36432937,21237.0,21236.0,0.01526853]
[1673969774116,2.62397896,21237.0,21236.0,0.01526853]
[1673969774366,2.98465339,21237.0,21236.0,0.01526853]
[1673969774612,0.15,21236.0,21235.0,0.01262665]
[1673969774857,2.1974233,21236.0,21235.0,0.01262665]
[1673969775638,2.33787289,21236.0,21235.0,0.01262665]
[1673969775881,2.63322634,21236.0,21235.0,0.01262665]
[1673969776402,2.1974233,21236.0,21235.0,0.01262665]
[1673969776891,2.33787289,21236.0,21235.0,0.01262665]
[1673969777876,0.51586297,21235.0,21234.0,0.01429967]
[1673969778129,2.07965597,21235.0,21234.0,0.01429967]
[1673969778380,2.43930012,21235.0,21234.0,0.01429967]
[1673969779123,1.77965597,21235.0,21234.0,0.01429967]
[1673969780400,2.07965597,21235.0,21234.0,0.01429967]
[1673969780660,1.77965597,21235.0,21234.0,0.01429967]
[1673969781236,3.52608402,21235.0,21234.0,0.01429967]
[1673969781420,3.52608402,21235.0,21224.0,0.621152]
[1673969781421,0.01596429,21233.0,21224.0,0.621152]
[1673969781695,1.537072,21231.0,21224.0,0.942303]
[1673969781944,0.81810909,21230.0,21224.0,0.942243]
[1673969782200,1.07818553,21229.0,21224.0,0.942243]
[1673969782467,0.13604653,21228.0,21224.0,0.942243]
[1673969782719,0.13604653,21227.0,21225.0,0.0085]
[1673969782973,0.471105,21227.0,21225.0,0.0085]
[1673969783221,0.471105,21227.0,21224.0,0.0085]
[1673969783470,0.942203,21227.0,21224.0,0.0085]
[1673969785993,0.942203,21227.0,21223.0,0.0085]
[1673969786286,0.51335115,21226.0,21223.0,0.0085]
[1673969786511,0.51335115,21226.0,21220.0,0.934537]
[1673969786512,1.00955511,21226.0,21220.0,0.934537]
[1673969786762,1.90968333,21225.0,21219.0,0.798357]
[1673969787023,0.13604653,21224.0,21218.0,1.5667461]
[1673969787270,0.13604653,21224.0,21218.0,2.0380431]
[1673969787271,1.07845053,21223.0,21218.0,2.0380431]
[1673969787592,0.13604653,21222.0,21218.0,2.0380431]
[1673969787800,0.13604653,21222.0,21218.0,1.5667461]
[1673969788036,0.13604653,21222.0,21219.0,0.288235]
[1673969788037,0.471232,21221.0,21219.0,0.288235]
[1673969788288,0.471232,21221.0,21218.0,1.0954631]
[1673969788567,0.60727853,21221.0,21218.0,1.0954631]
[1673969788830,1.51819983,21221.0,21218.0,1.04172008]
[1673969789360,0.13604653,21220.0,21218.0,1.04172008]
[1673969789625,0.471275,21219.0,21218.0,1.04172008]
[1673969790406,0.94255,21219.0,21218.0,1.04172008]
[1673969790668,1.24255,21219.0,21218.0,1.04172008]
[1673969790944,1.264503,21219.0,21218.0,1.04172008]
[1673969791202,1.66790723,21219.0,21218.0,1.04172008]
[1673969791774,1.87487225,21219.0,21218.0,1.04172008]
[1673969792030,1.66790723,21219.0,21218.0,1.04172008]
[1673969794477,1.19663223,21219.0,21218.0,1.04172008]
[1673969794727,1.96790723,21219.0,21218.0,1.04172008]
[1673969795002,2.44510892,21219.0,21218.0,1.04172008]
[1673969795306,2.80676048,21219.0,21218.0,1.04172008]
[1673969795603,2.93096048,21219.0,21218.0,1.04172008]
[1673969795878,3.08096048,21219.0,21218.0,1.04172008]
[1673969797454,3.08096048,21219.0,21218.0,0.78079208]
[1673969797709,3.20516048,21219.0,21218.0,0.06248708]
[1673969797984,0.08791404,21215.0,21213.0,0.02014936]
[1673969798280,0.321953,21214.0,21213.0,0.01996936]
[1673969798519,1.736111,21214.0,21213.0,0.01996936]
[1673969799305,2.160311,21214.0,21213.0,0.01996936]
[1673969799562,2.160311,21214.0,21213.0,3.6e-07]
[1673969799563,1.736111,21214.0,21213.0,3.6e-07]
[1673969800078,1.9656508,21214.0,21213.0,3.6e-07]
[1673969800333,1.736111,21214.0,21213.0,3.6e-07]
[1673969801124,2.63751269,21214.0,21213.0,3.6e-07]
[1673969801391,2.9976128,21214.0,21213.0,3.6e-07]
[1673969803877,0.15,21211.0,21210.0,0.91026561]
[1673969804129,0.15,21211.0,21210.0,0.01508261]
[1673969804130,2.97655352,21211.0,21210.0,0.01508261]
[1673969804394,2.97659348,21211.0,21210.0,0.01508261]
[1673969804664,3.62726503,21211.0,21210.0,0.01508261]
[1673969804945,3.62726503,21211.0,21207.0,1.31148485]
[1673969804946,0.15,21209.0,21207.0,1.31148485]
[1673969805197,3.31575997,21208.0,21207.0,1.31148485]
[1673969805466,4.0260473,21208.0,21207.0,1.31148485]
[1673969805771,4.72626632,21208.0,21207.0,0.09791153]
[1673969806047,4.22201309,21208.0,21207.0,0.09291153]
[1673969806326,3.47613538,21208.0,21207.0,0.09291153]
[1673969806852,3.47613538,21208.0,21204.0,0.01896794]
[1673969806853,0.09290947,21207.0,21204.0,0.01896794]
[1673969807113,0.1242,21205.0,21204.0,0.01896794]
[1673969807595,2.53546202,21205.0,21204.0,0.01896794]
[1673969807596,2.78297432,21205.0,21204.0,7.94e-06]
[1673969807861,2.78297432,21205.0,21193.0,0.471833]
[1673969807862,0.06751743,21197.0,21191.0,0.45634904]
[1673969808134,0.06751743,21197.0,21192.0,0.621874]
[1673969808135,0.45799953,21196.0,21192.0,0.621874]
[1673969808394,0.06751743,21197.0,21193.0,0.288669]
[1673969808395,0.13604653,21195.0,21193.0,0.288669]
[1673969808658,0.20356396,21197.0,21194.0,0.8484]
[1673969808926,0.06751743,21197.0,21195.0,0.288641]
[1673969809194,0.06751743,21197.0,21196.0,1.341974]
[1673969809456,0.06751743,21197.0,21196.0,1.630596]
[1673969809748,0.06751743,21197.0,21196.0,1.639096]
[1673969810059,0.02334783,21203.0,21196.0,2.239096]
[1673969810342,0.36878754,21206.0,21199.0,0.6]
[1673969810607,0.02715067,21204.0,21200.0,0.95948095]
[1673969810853,0.02715067,21204.0,21197.0,0.480249]
[1673969810854,0.02661491,21202.0,21197.0,0.480249]
[1673969811116,0.02661491,21202.0,21196.0,0.38037427]
[1673969811117,0.02559673,21200.0,21196.0,0.38037427]
[1673969811406,0.13604653,21199.0,21196.0,0.1234]
[1673969811691,0.13604653,21199.0,21194.0,1.201918]
[1673969811692,0.1647874,21198.0,21194.0,0.7301]
[1673969811955,0.1647874,21198.0,21192.0,1.01527028]
[1673969811956,0.3,21196.0,21192.0,1.01527028]
[1673969812218,0.3,21196.0,21190.0,0.1233]
[1673969812219,0.13604653,21195.0,21190.0,0.1233]
[1673969812473,0.13604653,21194.0,21190.0,0.47770423]
[1673969812780,0.13604653,21193.0,21190.0,1.07381023]
[1673969813051,0.13604653,21193.0,21191.0,0.288684]
[1673969813303,0.66987816,21196.0,21192.0,0.412588]
[1673969813562,0.3,21196.0,21192.0,0.31462595]
[1673969813827,0.3,21196.0,21192.0,0.72973297]
[1673969814121,0.3,21196.0,21193.0,0.288669]
[1673969814393,0.3,21196.0,21192.0,0.53900702]
[1673969814661,0.90783853,21196.0,21192.0,0.41510702]
[1673969814909,0.3,21196.0,21193.0,0.19072595]
[1673969815172,0.3,21196.0,21194.0,0.412055]
[1673969815459,0.471772,21197.0,21192.0,0.52734602]
[1673969815719,0.60781853,21197.0,21192.0,0.71807197]
[1673969815985,1.07958253,21197.0,21192.0,0.40374602]
[1673969816237,1.20135272,21197.0,21192.0,0.59447197]
[1673969816508,0.943536,21197.0,21193.0,0.19072595]
[1673969816796,0.943536,21197.0,21192.0,0.52724602]
[1673969817345,0.02874087,21198.0,21195.0,0.124]
[1673969817611,0.02874087,21198.0,21194.0,0.1232]
[1673969817612,0.07878806,21198.0,21194.0,0.1232]
[1673969817868,0.24879999,21193.0,21192.0,1.18963397]
[1673969818164,0.24879999,21193.0,21190.0,0.80171]
[1673969818165,0.4383564,21193.0,21190.0,0.47191]
[1673969818438,0.662651,21199.0,21190.0,0.47191]
[1673969818439,0.26322582,21203.0,21193.0,0.31592424]
[1673969818713,0.20894337,21206.0,21196.0,1.415319]
[1673969818714,0.446583,21206.0,21196.0,1.415319]
[1673969818966,0.471537,21208.0,21199.0,0.20389]
[1673969818967,0.91748543,21207.0,21199.0,0.20389]
[1673969819225,0.91748543,21207.0,21202.0,0.1234]
[1673969819226,0.4505752,21205.0,21202.0,0.1234]
[1673969819511,0.4505752,21205.0,21201.0,0.1234]
[1673969819793,0.4505752,21205.0,21200.0,0.471697]
[1673969819794,0.24679999,21201.0,21200.0,0.471697]
[1673969820056,0.24679999,21201.0,21200.0,0.594997]
[1673969820307,0.13929558,21209.0,21201.0,0.15]
[1673969820568,0.63754104,21210.0,21207.0,0.1242]
[1673969820569,0.471478,21210.0,21207.0,0.1242]
[1673969820874,0.84107819,21211.0,21204.0,0.80003]
[1673969821196,0.84107819,21211.0,21205.0,0.1886137]
[1673969821197,0.34328782,21207.0,21205.0,0.1886137]
[1673969821452,0.34328782,21207.0,21195.0,0.47867268]
[1673969821453,0.43746035,21204.0,21195.0,0.47867268]
[1673969821710,0.51167241,21203.0,21195.0,0.47867268]
[1673969821977,1.45500541,21202.0,21195.0,0.66728638]
[1673969822265,0.48955641,21201.0,21195.0,0.47867268]
[1673969822573,1.45510241,21200.0,21195.0,0.47867268]
[1673969822835,0.18955641,21199.0,21195.0,0.47867268]
[1673969823091,0.66127141,21200.0,21197.0,0.1242]
[1673969823338,0.66127141,21200.0,21194.0,0.7970387]
[1673969823339,0.47172,21199.0,21194.0,0.7970387]
[1673969823741,0.47172,21199.0,21194.0,0.3924387]
[1673969823742,0.64175787,21198.0,21194.0,0.3924387]
[1673969823745,0.64175787,21198.0,21191.0,0.47203404]
[1673969823967,0.81132541,21197.0,21191.0,0.47203404]
[1673969824186,0.18955641,21196.0,21192.0,0.1242]
[1673969824408,0.92396246,21198.0,21194.0,0.124]
[1673969824625,0.92396246,21198.0,21194.0,0.3126137]
[1673969824852,0.92396246,21198.0,21194.0,0.124]
[1673969824853,1.06353071,21198.0,21194.0,0.124]
[1673969825316,0.92396246,21198.0,21194.0,0.3126137]
[1673969825767,0.3,21197.0,21194.0,0.3126137]
[1673969825992,0.3,21197.0,21195.0,0.68883244]
[1673969826243,0.3,21197.0,21196.0,1.067774]
[1673969827151,0.3,21197.0,21196.0,0.79808752]
[1673969827855,0.3,21197.0,21196.0,0.1239]
[1673969828090,0.6,21197.0,21196.0,0.1239]
[1673969828306,0.6,21197.0,21196.0,0.595687]
[1673969828792,0.6,21197.0,21196.0,0.590687]
[1673969829017,0.6,21197.0,21196.0,1.070974]
[1673969829235,0.6,21197.0,21196.0,1.195174]
[1673969829453,0.6,21197.0,21196.0,1.067774]
[1673969829715,0.6,21197.0,21196.0,0.82520836]
[1673969830626,0.6,21197.0,21196.0,0.52520836]
[1673969830858,0.6,21197.0,21196.0,0.99699536]
[1673969832372,0.6,21197.0,21196.0,1.72818107]
[1673969832616,0.6,21197.0,21196.0,2.66388276]
[1673969832871,0.7856993,21204.0,21197.0,0.59048879]
[1673969832872,0.43746035,21204.0,21197.0,0.59048879]
[1673969833118,0.43746035,21204.0,21199.0,1.886872]
[1673969833357,0.43746035,21204.0,21203.0,0.248]
[1673969833604,0.43746035,21204.0,21203.0,1.8515067]
[1673969833973,0.43746035,21204.0,21203.0,1.8600067]
[1673969834219,0.0470265,21202.0,21200.0,0.27047169]
[1673969834504,0.0470265,21202.0,21201.0,0.2471]
[1673969834755,0.0470265,21202.0,21201.0,1.190444]
[1673969835022,0.0470265,21202.0,21201.0,0.718775]
[1673969835572,0.0470265,21202.0,21197.0,0.813912]
[1673969835573,0.81022287,21202.0,21197.0,0.471752]
[1673969835848,0.32992135,21201.0,21197.0,0.1242]
[1673969836364,0.53886472,21201.0,21197.0,0.1242]
[1673969836631,0.39633481,21202.0,21199.0,0.1238]
[1673969836896,0.14036494,21201.0,21199.0,0.59552]
[1673969837166,0.82099831,21201.0,21199.0,0.1238]
[1673969837425,0.68105937,21200.0,21194.0,0.1233]
[1673969837709,0.14054741,21197.0,21192.0,0.1242]
[1673969838008,0.14054741,21197.0,21191.0,0.9462001]
[1673969838009,0.78955644,21196.0,21191.0,0.9462001]
[1673969838285,0.18955641,21195.0,21191.0,0.9462001]
[1673969838560,0.18955641,21195.0,21193.0,0.49338593]
[1673969838812,0.18955641,21195.0,21192.0,1.067626]
[1673969839109,0.18955641,21195.0,21191.0,0.471879]
[1673969839110,0.33010382,21195.0,21191.0,0.471879]
[1673969839367,0.33010382,21195.0,21190.0,0.595211]
[1673969839368,0.78955644,21195.0,21190.0,0.595211]
[1673969839636,0.18955641,21194.0,21190.0,0.595211]
[1673969839891,0.18955641,21193.0,21190.0,0.595211]
[1673969840412,0.81082115,21194.0,21190.0,0.471911]
[1673969840675,0.81082115,21194.0,21191.0,0.44746615]
[1673969840676,0.60000003,21194.0,21191.0,0.44746615]
[1673969840926,0.35136853,21194.0,21191.0,0.44746615]
[1673969841191,0.14054741,21194.0,21191.0,0.76027985]
[1673969841465,0.14054741,21195.0,21191.0,1.70406885]
[1673969841702,0.14054741,21195.0,21191.0,1.57986885]
[1673969841973,0.14054741,21194.0,21191.0,1.39125515]
[1673969843036,0.14054741,21194.0,21191.0,0.44746615]
[1673969843037,0.35136853,21193.0,21191.0,0.44746615]
[1673969843567,0.35136853,21193.0,21192.0,0.1242]
[1673969843568,0.14054741,21193.0,21192.0,0.1242]
[1673969843832,0.49191595,21194.0,21192.0,1.342152]
[1673969843833,0.35136853,21194.0,21192.0,1.342152]
[1673969844111,0.14054741,21194.0,21193.0,0.63145146]
[1673969844374,0.14054741,21195.0,21193.0,1.57015746]
[1673969844634,0.14054741,21195.0,21194.0,0.2827]
[1673969844900,0.14054741,21195.0,21194.0,1.076362]
[1673969845616,0.14054741,21196.0,21194.0,1.200262]
[1673969845619,0.67376514,21198.0,21195.0,0.621]
[1673969845886,0.46294402,21198.0,21196.0,1.415361]
[1673969846149,0.14106909,21197.0,21196.0,0.595987]
[1673969846416,0.35189021,21197.0,21196.0,0.471787]
[1673969846946,0.14106909,21197.0,21196.0,1.075374]
[1673969847236,0.53321773,21198.0,21196.0,1.075374]
[1673969847237,0.4634657,21198.0,21196.0,1.075374]
[1673969847510,0.32239661,21198.0,21197.0,0.42099]
[1673969847779,0.32239661,21198.0,21197.0,1.514518]
[1673969848296,0.32239661,21198.0,21197.0,1.50876494]
[1673969849076,0.32239661,21198.0,21197.0,2.25216188]
[1673969849371,0.32239661,21198.0,21197.0,3.30900526]
[1673969849856,0.32239661,21198.0,21197.0,3.308971]
[1673969850896,0.32239661,21198.0,21197.0,3.78617269]
[1673969852213,0.32239661,21198.0,21197.0,3.04260829]
[1673969852480,0.32239661,21198.0,21197.0,3.48595569]
[1673969852739,0.32239661,21198.0,21197.0,3.04260829]
[1673969853306,0.32239661,21198.0,21197.0,2.85353371]
[1673969853770,0.1470265,21202.0,21198.0,0.15]
[1673969854026,0.1470265,21202.0,21200.0,0.1408167]
[1673969854301,0.1470265,21202.0,21201.0,2.7642]
[1673969854696,0.1470265,21202.0,21201.0,3.7124055]
[1673969855140,0.01972595,21202.0,21201.0,6.28544229]
[1673969855387,0.43746035,21204.0,21202.0,0.15]
[1673969855606,0.43746035,21204.0,21203.0,3.24202569]
[1673969855835,0.18780435,21204.0,21203.0,3.54202569]
[1673969856049,0.00393377,21205.0,21204.0,0.15]
[1673969856267,0.00393377,21205.0,21204.0,3.79632339]
[1673969856493,0.00393377,21207.0,21204.0,4.14556607]
[1673969856740,0.00393377,21207.0,21206.0,0.8678]
[1673969856960,0.00393377,21207.0,21206.0,3.56329345]
[1673969857231,0.00389946,21210.0,21206.0,3.6103225]
[1673969857471,0.00389946,21210.0,21209.0,0.2479]
[1673969857702,0.00389946,21210.0,21209.0,2.61958969]
[1673969858133,0.00389946,21210.0,21209.0,2.142388]
[1673969859264,0.00389946,21210.0,21209.0,2.91958969]
[1673969859487,0.00389946,21210.0,21209.0,3.52671826]
[1673969859903,0.00389946,21210.0,21209.0,4.14731826]
[1673969860179,0.00389946,21210.0,21209.0,4.81504731]
[1673969860445,0.00389946,21210.0,21209.0,4.19384731]
[1673969860989,0.00389946,21210.0,21209.0,4.14681826]
[1673969862006,0.00393377,21213.0,21209.0,4.14681826]
[1673969862007,0.00393377,21213.0,21209.0,4.38255826]
[1673969862317,0.00393377,21213.0,21212.0,0.2481]
[1673969862545,0.00393377,21213.0,21212.0,2.91952569]
[1673969863580,0.00393377,21213.0,21212.0,2.61952569]
[1673969863857,0.00393377,21213.0,21212.0,2.91952569]
[1673969864926,0.00393377,21213.0,21212.0,3.18431606]
[1673969864927,0.19349018,21213.0,21212.0,3.18431606]
[1673969865162,0.19349018,21213.0,21212.0,2.31541606]
[1673969865163,0.00393377,21213.0,21212.0,2.31541606]
[1673969866218,7.7e-07,21213.0,21212.0,2.91591775]
[1673969866430,0.00372753,21214.0,21213.0,0.771]
[1673969866687,0.00329953,21215.0,21214.0,0.15]
[1673969866941,0.00329953,21215.0,21214.0,2.11416369]
[1673969866942,0.00323953,21215.0,21214.0,2.11416369]
[1673969867477,0.00323953,21215.0,21214.0,1.87847369]
[1673969867731,0.00396854,21219.0,21214.0,2.33309853]
[1673969867985,0.00396854,21219.0,21218.0,0.1242]
[1673969868244,0.00396854,21219.0,21218.0,2.1980017]
[1673969868496,0.00396854,21219.0,21218.0,2.79508969]
[1673969868752,0.00396854,21219.0,21218.0,2.49508969]
[1673969868975,0.00396854,21219.0,21218.0,2.79508969]
[1673969869567,0.00396854,21219.0,21218.0,2.49508969]
[1673969869840,0.00396854,21219.0,21218.0,2.017888]
[1673969870274,0.00396854,21219.0,21218.0,2.49497832]
[1673969870803,0.00396854,21219.0,21218.0,2.79497832]
[1673969871106,0.00396854,21219.0,21218.0,1.89098132]
[1673969871367,0.00396854,21219.0,21214.0,0.818786]
[1673969871368,0.00396854,21219.0,21217.0,0.471319]
[1673969871654,0.00396854,21219.0,21216.0,0.942654]
[1673969871929,0.19346495,21219.0,21216.0,0.942654]
[1673969872465,0.19346495,21219.0,21215.0,0.471353]
[1673969872466,0.6693422,21219.0,21215.0,0.471353]
[1673969873026,1.1406192,21219.0,21214.0,0.471386]
[1673969873353,1.1406192,21219.0,21214.0,0.6599997]
[1673969873595,0.00390854,21219.0,21215.0,0.1886137]
[1673969873874,0.00390854,21219.0,21216.0,1.47036921]
[1673969874116,0.00390854,21219.0,21216.0,1.65898291]
[1673969874622,0.00390854,21219.0,21217.0,0.0085]
[1673969874860,0.00390854,21219.0,21218.0,1.413891]
[1673969875105,0.00390854,21219.0,21218.0,0.942594]
[1673969875610,0.00390854,21219.0,21218.0,1.46695545]
[1673969877090,0.00390854,21219.0,21217.0,0.471311]
[1673969877836,0.00390854,21219.0,21216.0,0.942649]
[1673969880328,0.00390854,21219.0,21217.0,0.51242471]
[1673969880579,0.00390854,21219.0,21217.0,0.70103841]
[1673969880827,0.00390854,21219.0,21218.0,0.951094]
[1673969881597,0.00390854,21219.0,21218.0,1.251094]
[1673969881840,0.00390854,21219.0,21218.0,1.401094]
[1673969882334,0.00390854,21219.0,21218.0,1.251094]
[1673969882830,0.00390854,21219.0,21218.0,0.3]
[1673969883095,0.19346495,21219.0,21216.0,0.471322]
[1673969883345,0.51167241,21218.0,21211.0,0.471433]
[1673969883589,0.942688,21216.0,21210.0,0.92436532]
[1673969883850,0.18955641,21215.0,21210.0,0.92436532]
[1673969884104,0.18955641,21214.0,21212.0,0.39235198]
[1673969884409,1.13233741,21214.0,21209.0,0.471479]
[1673969884618,1.13233741,21214.0,21210.0,0.46502376]
[1673969884619,0.18955641,21213.0,21210.0,0.46502376]
[1673969885360,0.58168376,21214.0,21208.0,0.91719614]
[1673969885626,0.66097041,21213.0,21208.0,0.6601147]
[1673969885865,0.18955641,21212.0,21208.0,0.471501]
[1673969886595,0.92889276,21213.0,21208.0,0.471501]
[1673969886837,0.86278191,21213.0,21208.0,1.1316347]
[1673969887118,0.6,21211.0,21203.0,0.01884684]
[1673969887357,1.414516,21209.0,21203.0,0.01884684]
[1673969887597,0.97058537,21208.0,21203.0,0.01884684]
[1673969887845,1.44213737,21207.0,21203.0,0.01884684]
[1673969888098,0.247,21204.0,21203.0,0.01884684]
[1673969888346,1.23028141,21204.0,21203.0,0.01884684]
[1673969888584,1.49963796,21204.0,21203.0,0.01884684]
[1673969889830,1.37643796,21204.0,21203.0,0.01884684]
[1673969890332,1.50023796,21204.0,21203.0,0.01884684]
[1673969890819,1.50023796,21204.0,21203.0,4.684e-05]
[1673969891068,1.95023796,21204.0,21203.0,4.684e-05]
[1673969891320,1.50023796,21204.0,21203.0,4.684e-05]
[1673969891559,1.37643796,21204.0,21203.0,4.684e-05]
[1673969891838,0.917525,21204.0,21203.0,4.684e-05]
[1673969892087,1.95063796,21204.0,21203.0,4.684e-05]
[1673969892339,1.65063796,21204.0,21203.0,4.684e-05]
[1673969893086,8.737e-05,21201.0,21194.0,0.1676153]
[1673969893342,0.1242,21196.0,21194.0,0.0176153]
[1673969893579,0.18955641,21195.0,21194.0,0.0176153]
[1673969893827,0.445,21200.0,21195.0,0.48696196]
[1673969894065,0.12428737,21201.0,21196.0,0.3386137]
[1673969894066,8.737e-05,21201.0,21196.0,0.3386137]
[1673969894309,8.737e-05,21201.0,21197.0,0.1886137]
[1673969894568,8.737e-05,21201.0,21197.0,1.1321197]
[1673969894845,8.737e-05,21201.0,21198.0,0.15]
[1673969895095,8.737e-05,21201.0,21198.0,0.621729]
[1673969895662,8.737e-05,21201.0,21196.0,0.471779]
[1673969895663,0.18964378,21201.0,21196.0,0.471779]
[1673969895878,0.18964378,21201.0,21195.0,0.95876196]
[1673969895879,0.18955641,21200.0,21195.0,0.95876196]
[1673969896077,0.18955641,21199.0,21195.0,1.43056996]
[1673969896570,0.93063444,21201.0,21195.0,1.61918366]
[1673969896819,0.66131878,21201.0,21196.0,0.3471137]
[1673969897065,8.737e-05,21201.0,21197.0,0.1886137]
[1673969897314,0.47176437,21201.0,21196.0,0.471776]
[1673969897583,0.47176437,21201.0,21196.0,0.6603897]
[1673969897584,0.66132078,21201.0,21196.0,0.6603897]
[1673969897830,1.13299578,21201.0,21196.0,0.6603897]
[1673969898080,1.59162241,21201.0,21196.0,0.6603897]
[1673969898330,1.59162241,21201.0,21196.0,0.1886137]
[1673969898585,1.59154019,21201.0,21196.0,0.1886137]
[1673969898836,1.59154019,21201.0,21194.0,0.0174353]
[1673969898837,0.64810082,21200.0,21194.0,0.0174353]
[1673969899074,0.64810082,21200.0,21194.0,0.206049]
[1673969899075,1.59190263,21199.0,21194.0,0.206049]
[1673969899325,0.64838789,21198.0,21194.0,0.0174353]
[1673969899587,0.471765,21197.0,21194.0,0.0174353]
[1673969899837,1.12011186,21197.0,21194.0,0.0174353]
[1673969900089,0.471765,21197.0,21194.0,0.0174353]
[1673969901117,0.93063703,21197.0,21194.0,0.0174353]
[1673969901365,1.40240103,21197.0,21194.0,0.0174353]
[1673969901857,0.322116,21196.0,21194.0,0.0174353]
[1673969902106,0.943618,21195.0,21194.0,0.0174353]
[1673969902353,1.265734,21195.0,21194.0,0.0174353]
[1673969902842,1.265734,21195.0,21189.0,0.92338761]
[1673969903088,1.265734,21195.0,21189.0,0.45146361]
[1673969903089,0.64846937,21194.0,21189.0,0.45146361]
[1673969903331,1.59219837,21193.0,21189.0,0.45146361]
[1673969903584,0.471809,21195.0,21189.0,0.45146361]
[1673969903585,0.45891296,21194.0,21191.0,0.47432397]
[1673969903830,0.93071896,21196.0,21191.0,0.94621597]
[1673969904105,0.93071896,21196.0,21191.0,0.47432397]
[1673969904343,0.93071896,21196.0,21191.0,0.66293767]
[1673969904344,0.45891296,21195.0,21191.0,0.66293767]
[1673969904615,1.59210337,21195.0,21191.0,0.47432397]
[1673969904845,1.59210337,21195.0,21189.0,0.96271176]
[1673969905092,0.64846937,21194.0,21189.0,1.15132546]